[Event "48th Ciutat de Badalona Open 2024"]
[Site "Badalona"]
[Date "2024.08.04"]
[Round "3.4"]
[White "Nagare Kaivalya Sandip"]
[Black "Kshatriya Nitin Vekhande"]
[Result "1-0"]
[ECO "B51"]
[WhiteElo "2273"]
[BlackElo "2173"]
[Annotator "RC"]
[PlyCount "91"]
[EventDate "2024.07.29"]
[EventCountry "ESP"]
[SourceTitle "playchess.com"]
[Source "ChessBase"]
[SourceQuality "1"]
[TimeControl "5400+30"]

1. e4 {[%emt 0:01:17]} c5 {[%emt 0:00:01]} 2. Nf3 {[%emt 0:00:06]} d6 {[%emt 0:00:02]} 3. Bb5+ {[%emt 0:00:11]} Nc6 {[%emt 0:00:04]} 4. O-O {[%emt 0:00:06]} Bd7 {[%emt 0:00:03]} 5. Re1 {[%emt 0:00:08]} a6 {[%emt 0:00:20]} 6. Bxc6 {[%emt 0:00:10]} Bxc6 {[%emt 0:00:13]} 7. d4 {[%emt 0:00:04]} cxd4 {[%emt 0:01:17]} 8. Nxd4 {[%emt 0:00:17]} e6 {[%emt 0:08:06]} 9. Nxc6 {[%emt 0:03:06]} bxc6 {[%emt 0:00:02]} 10. Qf3 {[%emt 0:00:06]} Qc7 {[%emt 0:21:52]} 11. c4 {[%emt 0:08:37]} Be7 {[%emt 0:20:20]} 12. Nc3 {[%emt 0:01:53]} Nf6 {[%emt 0:03:03]} 13. Qg3 {[%emt 0:00:22]} O-O {[%emt 0:00:53]} 14. c5 {[%emt 0:02:24]} e5 {[%emt 0:00:47]} 15. cxd6 {[%emt 0:00:30]} Qxd6 {[%emt 0:00:52]} 16. Qf3 {[%emt 0:03:22]} Rfd8 {[%emt 0:09:54]} 17. Qe2 {[%emt 0:04:17]} Qb4 {[%emt 0:13:16]} 18. Bg5 {[%emt 0:01:04]} h6 {[%emt 0:01:03]} 19. Bh4 {[%emt 0:05:08]} a5 {[%emt 0:07:10]} 20. Bg3 {[%emt 0:02:18]} Nd7 {[%emt 0:02:49]} 21. Rad1 {[%emt 0:00:30]} Bf6 {[%emt 0:00:38]} 22. a3 {[%emt 0:06:35]} Qb3 {[%emt 0:02:29]} 23. Rd6 {[%emt 0:00:09]} Rac8 {[%emt 0:02:17]} 24. Red1 {[%emt 0:00:06]} Nc5 {[%emt 0:00:49]} 25. Rxd8+ {[%emt 0:00:30]} Rxd8 {[%emt 0:00:01]} 26. Rxd8+ {[%emt 0:00:06]} Bxd8 {[%emt 0:00:05]} 27. Bxe5 {[%emt 0:00:03]} Ne6 {[%emt 0:00:05]} 28. Qd2 {[%emt 0:06:13]} Bb6 {[%emt 0:00:34]} 29. h3 {[%emt 0:05:30]} f6 {[%emt 0:00:24]} 30. Bg3 {[%emt 0:00:17]} Bd4 {[%emt 0:00:13]} 31. Kh2 {[%emt 0:00:37]} Bxc3 {[%emt 0:04:59]} 32. bxc3 {[%emt 0:02:17]} Qxa3 {[%emt 0:00:53]} 33. Qd7 {[%emt 0:00:04]} Ng5 {[%emt 0:00:08]} 34. Qxc6 {[%emt 0:00:29]} Qa2 {[%emt 0:01:04]} 35. h4 {[%emt 0:00:50]} Nf7 {[%emt 0:00:36]} 36. c4 {[%emt 0:00:03]} Ne5 {[%emt 0:00:18]} 37. Qd5+ {[%emt 0:00:48]} Kh7 {[%emt 0:00:14]} 38. c5 {[%emt 0:08:48]} Qb2 {[%emt 0:01:02]} 39. c6 {[%emt 0:00:27]} Qc2 {[%emt 0:00:28]} 40. Bxe5 {[%emt 0:00:27]} fxe5 {[%emt 0:00:01]} 41. Qd7 {[%emt 0:00:48]} Qxe4 {[%emt 0:00:05]} 42. c7 {[%emt 0:00:04]} Qf4+ {[%emt 0:00:54]} 43. Kh3 {[%emt 0:00:13]} Qxf2 {[%emt 0:00:20]} 44. Qd3+ {[%emt 0:00:05]} e4 {[%emt 0:00:25]} 45. Qxe4+ {[%emt 0:00:04]} g6 {[%emt 0:00:03]} 46. Qe7+ {[%emt 0:00:05]} 1-0

[Event "48th Ciutat de Badalona Open 2024"]
[Site "Badalona"]
[Date "2024.08.04"]
[Round "3.5"]
[White "Diaz Perez, Michel Alejandro"]
[Black "Singh, Siddharth"]
[Result "1-0"]
[ECO "B90"]
[WhiteElo "2487"]
[BlackElo "2130"]
[Annotator "RC"]
[PlyCount "83"]
[EventDate "2024.07.29"]
[EventCountry "ESP"]
[SourceTitle "playchess.com"]
[Source "ChessBase"]
[SourceQuality "1"]
[TimeControl "5400+30"]

1. e4 {[%emt 0:00:23]} c5 {[%emt 0:00:12]} 2. Nf3 {[%emt 0:00:03]} d6 {[%emt 0:00:05]} 3. d4 {[%emt 0:00:04]} cxd4 {[%emt 0:00:00]} 4. Nxd4 Nf6 {[%emt 1:32:13]} 5. Nc3 {[%emt 0:00:10]} a6 {[%emt 0:00:00]} 6. a4 {[%emt 1:32:50]} e5 {[%emt 0:00:00]} 7. Nf3 {[%emt 0:00:30]} Be7 {[%emt 0:00:00]} 8. Bc4 {[%emt 0:00:30]} Be6 {[%emt 0:02:00]} 9. Bb3 {[%emt 0:00:30]} h6 {[%emt 0:00:30]} 10. O-O {[%emt 0:00:30]} O-O {[%emt 0:00:30]} 11. Qe2 {[%emt 0:00:30]} Nbd7 {[%emt 0:00:30]} 12. Be3 {[%emt 0:00:30]} Rc8 {[%emt 0:00:30]} 13. Nd2 {[%emt 0:00:30]} Qc7 {[%emt 0:00:30]} 14. a5 {[%emt 0:00:30]} Nc5 {[%emt 0:00:30]} 15. Bxc5 {[%emt 0:00:00]} Qxc5 {[%emt 0:00:00]} 16. Qf3 {[%emt 0:01:00]} Nd7 {[%emt 0:00:00]} 17. Rfd1 {[%emt 0:00:30]} Qc7 {[%emt 0:00:00]} 18. Nf1 {[%emt 0:00:00]} Nc5 {[%emt 0:00:00]} 19. Nd5 {[%emt 0:00:00]} Bxd5 {[%emt 0:00:00]} 20. Bxd5 {[%emt 0:00:00]} Nd7 {[%emt 0:00:00]} 21. Ne3 {[%emt 0:00:00]} Bg5 {[%emt 0:00:00]} 22. Nf5 {[%emt 0:00:00]} g6 {[%emt 0:00:00]} 23. h4 {[%emt 0:00:00]} Bd8 {[%emt 0:00:00]} 24. Bxf7+ {[%emt 0:00:00]} Kxf7 {[%emt 0:00:00]} 25. Qb3+ {[%emt 0:00:00]} d5 {[%emt 0:00:00]} 26. Rxd5 {[%emt 0:00:00]} gxf5 {[%emt 0:00:00]} 27. Rxd7+ {[%emt 0:00:00]} Kf6 {[%emt 0:00:00]} 28. Rxc7 {[%emt 0:00:00]} Rxc7 {[%emt 0:00:00]} 29. exf5 {[%emt 0:00:00]} Re8 {[%emt 0:00:00]} 30. Rd1 {[%emt 0:00:00]} Kxf5 {[%emt 0:00:00]} 31. Rd6 {[%emt 0:00:00]} e4 {[%emt 0:00:00]} 32. Qh3+ {[%emt 0:00:00]} Ke5 {[%emt 0:00:00]} 33. Qg3+ {[%emt 0:00:00]} Kf5 {[%emt 0:00:00]} 34. Rxd8 {[%emt 0:00:00]} Rxd8 {[%emt 0:00:00]} 35. Qxc7 {[%emt 0:00:00]} Rd5 {[%emt 0:00:00]} 36. Qxb7 {[%emt 0:00:00]} Re5 {[%emt 0:00:00]} 37. Qxa6 {[%emt 0:00:00]} h5 {[%emt 0:00:00]} 38. Qc8+ {[%emt 0:00:00]} Kf4 {[%emt 0:00:00]} 39. Qc7 {[%emt 0:00:00]} e3 {[%emt 0:00:00]} 40. fxe3+ {[%emt 0:00:00]} Kg4 {[%emt 0:00:00]} 41. Qxe5 {[%emt 0:00:00]} Kxh4 {[%emt 0:00:00]} 42. Qf4# {[%emt 0:00:00]} 1-0

[Event "48th Ciutat de Badalona Open 2024"]
[Site "Badalona"]
[Date "2024.08.04"]
[Round "3.6"]
[White "Vitier Vazquez, Cristian"]
[Black "Vedant Nitin vekhande"]
[Result "1-0"]
[ECO "E05"]
[WhiteElo "2357"]
[BlackElo "2161"]
[Annotator "RC"]
[PlyCount "61"]
[EventDate "2024.07.29"]
[EventCountry "ESP"]
[SourceTitle "playchess.com"]
[Source "ChessBase"]
[SourceQuality "1"]
[TimeControl "5400+30"]

1. d4 {[%emt 0:00:06]} Nf6 {[%emt 0:00:06]} 2. Nf3 {[%emt 0:00:11]} d5 {[%emt 0:00:09]} 3. c4 {[%emt 1:31:43]} e6 {[%emt 1:31:45]} 4. g3 {[%emt 0:00:00]} Be7 {[%emt 0:00:00]} 5. Bg2 {[%emt 0:00:00]} O-O {[%emt 0:00:00]} 6. O-O dxc4 {[%emt 0:00:00]} 7. Qc2 {[%emt 0:00:00]} a6 8. a4 {[%emt 0:02:30]} Bd7 {[%emt 0:00:00]} 9. Qxc4 {[%emt 0:00:00]} Bc6 {[%emt 0:03:00]} 10. Bg5 {[%emt 0:01:00]} Nbd7 {[%emt 0:00:30]} 11. Nc3 {[%emt 0:00:00]} a5 12. Rfe1 {[%emt 0:01:00]} Ne4 {[%emt 0:01:00]} 13. Nxe4 {[%emt 0:00:00]} Bxe4 {[%emt 0:00:00]} 14. Bxe7 {[%emt 0:01:00]} Qxe7 {[%emt 0:01:00]} 15. Qxc7 {[%emt 0:00:00]} Rfc8 16. Qf4 {[%emt 0:01:00]} Nf6 {[%emt 0:01:00]} 17. Rec1 {[%emt 0:00:30]} Qb4 {[%emt 0:00:30]} 18. Qd2 {[%emt 0:00:30]} Rxc1+ {[%emt 0:00:30]} 19. Qxc1 {[%emt 0:00:30]} Nd5 {[%emt 0:00:30]} 20. Qd2 {[%emt 0:00:00]} Rc8 21. Rc1 {[%emt 0:01:00]} Rxc1+ {[%emt 0:00:00]} 22. Qxc1 {[%emt 0:00:00]} g6 {[%emt 0:00:00]} 23. Ng5 {[%emt 0:00:00]} Bxg2 {[%emt 0:00:00]} 24. Kxg2 {[%emt 0:00:00]} Kg7 {[%emt 0:00:00]} 25. e4 {[%emt 0:00:00]} Ne7 {[%emt 0:00:00]} 26. Qf4 {[%emt 0:00:00]} f5 {[%emt 0:00:00]} 27. Qe5+ {[%emt 0:00:00]} Kh6 {[%emt 0:00:00]} 28. Nf7+ {[%emt 0:00:00]} Kh5 {[%emt 0:00:00]} 29. g4+ {[%emt 0:00:00]} Kxg4 {[%emt 0:00:00]} 30. Qg3+ {[%emt 0:00:00]} Kh5 {[%emt 0:00:00]} 31. Qg5# {[%emt 0:00:00]} 1-0

[Event "48th Ciutat de Badalona Open 2024"]
[Site "Badalona"]
[Date "2024.08.04"]
[Round "3.7"]
[White "Sviridenko, Yaroslav"]
[Black "Utsab Chatterjee"]
[Result "0-1"]
[ECO "B51"]
[WhiteElo "2076"]
[BlackElo "2289"]
[Annotator "RC"]
[PlyCount "114"]
[EventDate "2024.07.29"]
[EventCountry "ESP"]
[SourceTitle "playchess.com"]
[Source "ChessBase"]
[SourceQuality "1"]
[TimeControl "5400+30"]

1. e4 {[%emt 0:29:39]} c5 {[%emt 0:00:32]} 2. Nf3 {[%emt 0:00:30]} d6 {[%emt 0:00:11]} 3. Bb5+ {[%emt 0:00:16]} Nd7 {[%emt 0:00:16]} 4. d4 {[%emt 0:00:22]} cxd4 {[%emt 0:00:12]} 5. Qxd4 {[%emt 0:00:07]} a6 {[%emt 0:00:08]} 6. Be2 {[%emt 0:00:28]} Ngf6 {[%emt 0:00:10]} 7. O-O {[%emt 0:00:15]} e5 {[%emt 0:00:09]} 8. Qe3 {[%emt 0:00:09]} Nc5 {[%emt 0:00:07]} 9. Nfd2 {[%emt 0:00:24]} Bd7 {[%emt 0:00:30]} 10. c4 {[%emt 0:00:30]} Rc8 {[%emt 0:02:17]} 11. Nc3 {[%emt 0:00:34]} Ne6 {[%emt 0:00:13]} 12. Nb3 {[%emt 0:09:49]} Nf4 {[%emt 0:03:50]} 13. Rd1 {[%emt 0:53:57]} Ng4 {[%emt 1:28:25]} 14. Bxg4 {[%emt 0:00:00]} Bxg4 {[%emt 0:00:30]} 15. f3 {[%emt 0:01:00]} Be6 {[%emt 0:00:00]} 16. Nd5 Bxd5 {[%emt 0:00:00]} 17. cxd5 {[%emt 0:00:00]} Qg5 {[%emt 0:00:00]} 18. Qd2 {[%emt 0:00:00]} Be7 {[%emt 0:00:00]} 19. Kh1 {[%emt 0:02:00]} O-O {[%emt 0:02:30]} 20. g3 {[%emt 0:00:00]} Nh3 {[%emt 0:00:00]} 21. Qxg5 {[%emt 0:00:00]} Nxg5 {[%emt 0:00:00]} 22. Kg2 {[%emt 0:00:00]} h5 {[%emt 0:00:00]} 23. h4 {[%emt 0:00:00]} Nh7 {[%emt 0:00:00]} 24. Be3 {[%emt 0:00:00]} Rc2+ {[%emt 0:00:00]} 25. Rd2 {[%emt 0:00:00]} Rfc8 {[%emt 0:00:00]} 26. Rad1 {[%emt 0:00:00]} Bd8 {[%emt 0:00:00]} 27. Rxc2 {[%emt 0:00:00]} Rxc2+ {[%emt 0:00:00]} 28. Rd2 {[%emt 0:00:00]} Rc4 {[%emt 0:00:00]} 29. Rd3 {[%emt 0:05:00]} g6 {[%emt 0:00:00]} 30. Rc3 {[%emt 0:00:30]} Rxc3 {[%emt 0:00:00]} 31. bxc3 {[%emt 0:00:00]} b5 {[%emt 0:00:00]} 32. Kf2 {[%emt 0:00:00]} f5 {[%emt 0:00:00]} 33. Ke2 {[%emt 0:00:00]} Kf7 {[%emt 0:00:00]} 34. Kd3 {[%emt 0:00:00]} Nf6 {[%emt 0:07:30]} 35. Nd2 {[%emt 0:02:30]} Nd7 {[%emt 0:00:00]} 36. c4 {[%emt 0:00:30]} Ba5 {[%emt 0:00:00]} 37. Bf2 {[%emt 0:00:00]} Bb4 {[%emt 0:01:30]} 38. Nb3 {[%emt 0:00:00]} Kf6 {[%emt 0:00:30]} 39. Na1 {[%emt 0:01:30]} Nc5+ {[%emt 0:00:00]} 40. Bxc5 {[%emt 0:00:00]} bxc4+ {[%emt 0:01:00]} 41. Ke2 {[%emt 0:00:00]} Bxc5 {[%emt 0:00:30]} 42. Nc2 {[%emt 0:00:00]} f4 {[%emt 0:00:00]} 43. g4 {[%emt 0:00:00]} g5 {[%emt 0:00:00]} 44. hxg5+ {[%emt 0:00:00]} Kxg5 {[%emt 0:00:00]} 45. gxh5 {[%emt 0:00:00]} Kxh5 {[%emt 0:00:00]} 46. Kd2 {[%emt 0:00:00]} Kh4 {[%emt 0:00:00]} 47. Ke2 {[%emt 0:00:00]} a5 {[%emt 0:00:00]} 48. Kf1 {[%emt 0:00:00]} Kg5 {[%emt 0:00:00]} 49. a4 {[%emt 0:00:00]} Kf6 {[%emt 0:00:00]} 50. Kg2 {[%emt 0:00:00]} Ke7 {[%emt 0:00:00]} 51. Kh3 {[%emt 0:00:00]} Kd7 {[%emt 0:00:00]} 52. Kg4 {[%emt 0:00:00]} Kc7 {[%emt 0:00:00]} 53. Kf5 {[%emt 0:00:18]} Kb6 {[%emt 0:00:00]} 54. Ke6 {[%emt 0:01:08]} Bb4 {[%emt 0:00:00]} 55. Nxb4 {[%emt 0:01:18]} axb4 {[%emt 0:00:00]} 56. Kxd6 {[%emt 0:00:46]} c3 {[%emt 0:00:00]} 57. a5+ {[%emt 0:00:05]} Kxa5 {[%emt 0:00:00]} 0-1

[Event "48th Ciutat de Badalona Open 2024"]
[Site "Badalona"]
[Date "2024.08.04"]
[Round "3.8"]
[White "Roa Ribera, Alvaro"]
[Black "Blasco Coll, Andreu"]
[Result "0-1"]
[ECO "C79"]
[WhiteElo "1949"]
[BlackElo "2260"]
[Annotator "RC"]
[PlyCount "72"]
[EventDate "2024.07.29"]
[EventCountry "ESP"]
[SourceTitle "playchess.com"]
[Source "ChessBase"]
[SourceQuality "1"]
[TimeControl "5400+30"]

1. e4 {[%emt 0:00:06]} e5 {[%emt 0:00:10]} 2. Nf3 {[%emt 0:00:10]} Nc6 {[%emt 0:00:09]} 3. Bb5 {[%emt 0:00:05]} a6 {[%emt 0:00:11]} 4. Ba4 {[%emt 0:00:02]} Nf6 {[%emt 0:00:08]} 5. O-O {[%emt 0:00:08]} d6 {[%emt 0:00:20]} 6. Re1 {[%emt 0:03:24]} Bd7 {[%emt 0:00:21]} 7. c3 {[%emt 0:00:43]} g6 {[%emt 0:00:39]} 8. d4 {[%emt 0:01:05]} Bg7 {[%emt 0:00:26]} 9. d5 {[%emt 0:05:23]} Ne7 {[%emt 0:00:22]} 10. Bxd7+ {[%emt 0:00:14]} Nxd7 {[%emt 0:00:14]} 11. c4 {[%emt 0:00:10]} O-O {[%emt 0:01:35]} 12. Be3 {[%emt 1:25:00]} h6 {[%emt 0:02:13]} 13. Nfd2 {[%emt 0:00:00]} f5 {[%emt 0:00:32]} 14. f3 {[%emt 0:00:00]} Kh7 {[%emt 0:01:23]} 15. Nc3 {[%emt 0:00:00]} Bf6 {[%emt 0:00:33]} 16. b4 {[%emt 0:00:00]} Bh4 {[%emt 0:03:44]} 17. g3 {[%emt 0:00:00]} f4 {[%emt 0:01:11]} 18. Bf2 {[%emt 0:00:00]} fxg3 {[%emt 0:00:41]} 19. hxg3 {[%emt 0:00:00]} Bg5 {[%emt 0:00:00]} 20. Nb3 {[%emt 0:00:00]} Rf6 {[%emt 0:18:34]} 21. c5 {[%emt 0:00:00]} Qf8 {[%emt 0:00:20]} 22. Kg2 {[%emt 0:00:00]} Qf7 {[%emt 0:00:19]} 23. Bg1 {[%emt 0:00:00]} Rf8 {[%emt 0:00:19]} 24. Rf1 {[%emt 0:00:00]} h5 {[%emt 0:00:50]} 25. cxd6 {[%emt 0:00:00]} cxd6 {[%emt 0:01:04]} 26. b5 {[%emt 0:00:00]} h4 {[%emt 0:11:45]} 27. bxa6 {[%emt 0:00:00]} bxa6 {[%emt 0:00:18]} 28. Na5 {[%emt 0:00:00]} hxg3 {[%emt 0:09:14]} 29. Rb1 {[%emt 0:00:00]} Rb8 {[%emt 0:03:29]} 30. Qd3 {[%emt 0:00:00]} Bf4 {[%emt 0:03:43]} 31. Nc6 {[%emt 0:00:00]} g5 {[%emt 0:26:13]} 32. Nxe7 {[%emt 0:00:00]} Qxe7 {[%emt 0:00:50]} 33. Qxa6 {[%emt 0:00:00]} Rh8 {[%emt 0:01:40]} 34. Rb7 {[%emt 0:00:00]} Kg6 {[%emt 0:00:13]} 35. Qa7 {[%emt 0:00:00]} Qh7 {[%emt 0:00:29]} 36. Rd1 {[%emt 0:00:00]} Qh3# {[%emt 0:14:18]} 0-1

[Event "48th Ciutat de Badalona Open 2024"]
[Site "Badalona"]
[Date "2024.08.04"]
[Round "3.9"]
[White "Costa Trave, Jaume"]
[Black "Daimiel Bescos, Eleuterio"]
[Result "1/2-1/2"]
[ECO "A03"]
[WhiteElo "1805"]
[BlackElo "1895"]
[Annotator "NA RC"]
[PlyCount "57"]
[EventDate "2024.07.29"]
[EventCountry "ESP"]
[SourceTitle "playchess.com"]
[Source "ChessBase"]
[SourceQuality "1"]
[TimeControl "5400+30"]

1. f4 {[%emt 1:31:00]} d5 {[%emt 0:10:30]} 2. Nf3 {[%emt 0:00:00]} Bg4 {[%emt 0:02:13]} 3. e3 {[%emt 0:00:00]} e6 {[%emt 0:03:26]} 4. d4 {[%emt 0:00:00]} c5 {[%emt 0:02:37]} 5. c3 {[%emt 0:00:00]} Be7 {[%emt 0:05:22]} 6. Be2 {[%emt 0:02:30]} Nc6 {[%emt 0:01:13]} 7. O-O {[%emt 0:00:00]} Nf6 {[%emt 1:08:39]} 8. Nbd2 {[%emt 0:00:00]} O-O {[%emt 0:00:00]} 9. Ne5 {[%emt 0:01:30]} Bxe2 {[%emt 0:00:00]} 10. Qxe2 {[%emt 0:00:30]} Rc8 {[%emt 0:00:00]} 11. Qd3 {[%emt 0:00:30]} Nd7 {[%emt 0:02:00]} 12. Ndf3 {[%emt 0:00:30]} c4 {[%emt 0:00:00]} 13. Qc2 {[%emt 0:00:30]} f5 {[%emt 0:01:00]} 14. Bd2 {[%emt 0:00:30]} h6 {[%emt 0:00:00]} 15. Be1 {[%emt 0:00:00]} Nf6 {[%emt 0:00:00]} 16. h4 {[%emt 0:00:00]} Qe8 {[%emt 0:00:00]} 17. g3 {[%emt 0:00:00]} Qh5 {[%emt 0:00:00]} 18. Qg2 {[%emt 0:00:00]} Nxe5 {[%emt 0:00:00]} 19. Nxe5 {[%emt 0:00:00]} a5 {[%emt 0:00:00]} 20. Rc1 {[%emt 0:00:00]} Ng4 {[%emt 0:00:00]} 21. Qf3 {[%emt 0:00:00]} Nf6 {[%emt 0:00:00]} 22. Rc2 {[%emt 0:00:00]} b5 {[%emt 0:00:00]} 23. a3 {[%emt 0:00:00]} Qxf3 {[%emt 0:00:00]} 24. Rxf3 {[%emt 0:00:00]} Kh7 {[%emt 0:00:00]} 25. Rg2 {[%emt 0:00:00]} h5 {[%emt 0:00:00]} 26. Rff2 {[%emt 0:00:00]} a4 {[%emt 0:00:00]} 27. Nf3 {[%emt 0:00:00]} Rc6 {[%emt 0:00:00]} 28. Re2 {[%emt 0:00:00]} g6 {[%emt 0:00:00]} 29. Ne5 {[%emt 0:07:30]} 1/2-1/2

[Event "48th Ciutat de Badalona Open 2024"]
[Site "Badalona"]
[Date "2024.08.04"]
[Round "3.10"]
[White "Lozano Ruiz, David"]
[Black "Paez Nunez, David"]
[Result "1/2-1/2"]
[ECO "E12"]
[WhiteElo "1894"]
[BlackElo "1791"]
[Annotator "NA RC"]
[PlyCount "65"]
[EventDate "2024.07.29"]
[EventCountry "ESP"]
[SourceTitle "playchess.com"]
[Source "ChessBase"]
[SourceQuality "1"]
[TimeControl "5400+30"]

1. d4 {[%emt 0:00:01]} Nf6 {[%emt 0:00:18]} 2. c4 {[%emt 0:00:04]} b6 {[%emt 0:00:03]} 3. Nc3 {[%emt 0:00:15]} Bb7 {[%emt 0:00:06]} 4. Nf3 {[%emt 0:00:25]} e6 {[%emt 0:00:13]} 5. Bg5 {[%emt 0:00:33]} Be7 {[%emt 0:01:29]} 6. e3 {[%emt 0:00:29]} c5 {[%emt 0:00:53]} 7. Bd3 {[%emt 0:02:23]} O-O {[%emt 0:04:30]} 8. O-O {[%emt 0:00:03]} Nc6 {[%emt 0:02:07]} 9. Rc1 {[%emt 0:03:31]} h6 {[%emt 0:01:13]} 10. Bf4 {[%emt 1:27:46]} Nh5 {[%emt 0:02:10]} 11. Ne2 {[%emt 0:00:30]} Nb4 {[%emt 0:01:52]} 12. Bb1 {[%emt 0:00:00]} Bxf3 {[%emt 0:00:14]} 13. gxf3 {[%emt 0:00:00]} Nxf4 {[%emt 0:00:37]} 14. Nxf4 {[%emt 0:00:00]} Bg5 {[%emt 0:06:19]} 15. Nd3 {[%emt 0:00:00]} Nxd3 {[%emt 0:06:11]} 16. Qxd3 {[%emt 0:00:00]} g6 {[%emt 0:01:35]} 17. dxc5 {[%emt 0:00:00]} bxc5 {[%emt 0:00:44]} 18. Rcd1 {[%emt 0:00:00]} Qf6 {[%emt 0:04:40]} 19. f4 {[%emt 0:00:00]} Bh4 {[%emt 0:00:15]} 20. Qe4 {[%emt 0:00:00]} Rad8 {[%emt 0:06:10]} 21. Rd2 {[%emt 0:00:00]} d5 {[%emt 0:05:29]} 22. cxd5 {[%emt 0:00:00]} exd5 {[%emt 0:01:30]} 23. Rxd5 {[%emt 0:00:00]} Qxb2 {[%emt 0:02:02]} 24. Rxd8 {[%emt 0:00:00]} Rxd8 {[%emt 0:01:33]} 25. f5 {[%emt 0:00:00]} Qf6 {[%emt 0:09:17]} 26. fxg6 {[%emt 0:00:00]} Qxg6+ {[%emt 0:03:20]} 27. Qxg6+ {[%emt 0:00:00]} fxg6 {[%emt 0:00:06]} 28. Bxg6 {[%emt 0:00:00]} Rd2 {[%emt 0:01:07]} 29. Be4 {[%emt 0:00:00]} Kg7 {[%emt 0:02:34]} 30. Bb1 {[%emt 0:00:00]} Rb2 {[%emt 0:36:53]} 31. Kg2 {[%emt 0:10:00]} Bxf2 {[%emt 0:00:30]} 32. Rxf2 {[%emt 0:00:30]} Rxb1 {[%emt 0:00:30]} 33. Rc2 {[%emt 0:00:30]} 1/2-1/2

[Event "48th Ciutat de Badalona Open 2024"]
[Site "Badalona"]
[Date "2024.08.05"]
[Round "4.1"]
[White "Berdayes Ason, Dylan Isidro"]
[Black "Nagare Kaivalya Sandip"]
[Result "1-0"]
[ECO "C55"]
[WhiteElo "2476"]
[BlackElo "2273"]
[Annotator "TA"]
[PlyCount "47"]
[EventDate "2024.07.29"]
[EventCountry "ESP"]
[SourceTitle "playchess.com"]
[Source "ChessBase"]
[SourceQuality "1"]
[TimeControl "5400+30"]

{[%evp 11,47,19,15,4,20,28,16,5,33,30,28,33,29,28,36,35,85,80,88,58,105,95,104,97,122,87,298,312,323,310,492,489,480,508,509,514,491,482]} 1. e4 {[%emt 0:06:11]} e5 {[%emt 0:00:23]} 2. Nf3 {[%emt 0:00:05]} Nc6 {[%emt 0:00:06]} 3. Bc4 {[%emt 0:00:02]} Nf6 {[%emt 0:00:06]} 4. d3 {[%emt 0:00:01]} Be7 {[%emt 0:00:08]} 5. O-O {[%emt 0:00:09]} O-O {[%emt 0:00:05]} 6. Nc3 {[%emt 0:00:03]} d6 {[%emt 0:00:06]} 7. a4 {[%emt 0:00:03]} Bg4 {[%emt 0:00:08]} 8. h3 {[%emt 0:00:09]} Bh5 {[%emt 0:00:35]} 9. Be3 {[%emt 0:00:02] The position is equal.} Nd4 {[%emt 0:00:07]} 10. Bxd4 {[%emt 0:03:26]} exd4 {[%emt 0:00:09]} 11. Nd5 {[%emt 0:00:04]} Nxd5 {[%emt 0:00:35]} 12. Bxd5 {[%emt 0:00:02][%cal Og2g4]} c6 {[%emt 0:00:07]} 13. Bb3 {[%emt 0:01:17]} Bf6 {[%emt 0:06:04]} ({Black should play} 13... Bxf3 $14 14. Qxf3 g6) 14. g4 $16 {[%emt 0:03:52]} Bg6 {[%emt 0:00:04]} 15. Nh2 {[%emt 0:00:40]} Re8 {[%emt 0:11:52]} ({Don't play} 15... d5 16. f4 $16) (15... h6 $14) 16. f4 {[%emt 0:02:05] [#] Threatens to win with g5.} h6 {[%emt 0:00:02]} 17. Nf3 {[%emt 0:05:40]} Qd7 {[%emt 0:01:27]} 18. Qd2 {[%emt 1:15:39]} Re7 $2 {[%emt 0:06:18] This move loses the game for Black.} (18... d5 $16) 19. Rae1 $18 {[%emt 0:00:00]} Rae8 {[%emt 0:00:07]} 20. Qg2 {[%emt 0:01:00]} Bh7 {[%emt 0:11:38]} (20... Kf8 $142 21. h4 d5) 21. g5 {[%emt 0:00:00] White is clearly winning.} hxg5 {[%emt 0:00:06]} 22. fxg5 {[%emt 0:00:00][%cal Bf4g5,Bg5g6][%mdl 32]} Be5 {[%emt 0:00:05]} 23. Nxe5 {[%emt 0:00:00]} dxe5 {[%emt 0:01:19]} 24. g6 {[%emt 0:00:00] Weighted Error Value: White=0.02 (flawless) /Black=0.47.  Loses game:     	---       	Black=1      Mistake:       	---       	Black=3      Inaccurate:     	White=1     	Black=1      OK:         	White=10    	Black=5      Best:        	White=4     	---} 1-0